fUST/lending_fUST_20250621
["ID","MTS","AMOUNT","RATE_DAILY","PERIOD"]
[366764558,1750439450087,-698.44510928,0.00020432,2]
[366764559,1750439450097,-698.44510928,0.00020432,2]
[366764560,1750439450107,-698.44510928,0.00020432,2]
[366764561,1750439450116,-698.44510928,0.00020432,2]
[366764562,1750439450126,-698.44510928,0.00020432,2]
[366764563,1750439450135,-698.44510928,0.00020432,2]
[366764564,1750439450144,-698.44510928,0.00020432,2]
[366764565,1750439450154,-698.44510928,0.00020432,2]
[366764566,1750439450163,-698.44510928,0.00020432,2]
[366764567,1750439450173,-698.44510928,0.00020432,2]
[366764568,1750439450182,-698.44510928,0.00020432,2]
[366764569,1750439450191,-698.44510928,0.00020432,2]
[366764570,1750439450201,-698.44510928,0.00020432,2]
[366764571,1750439450210,-698.44510928,0.00020432,2]
[366764572,1750439450220,-698.44510928,0.00020432,2]
[366764573,1750439450230,-230.06456406,0.00020474,2]
[366764574,1750439450239,-523.92420239,0.00020474,2]
[366764575,1750439450249,-846.08887863,0.00020474,2]
[366764576,1750439450259,-160.0,0.00020474,2]
[366764577,1750439450268,-160.0,0.00020474,2]
[366764578,1750439450277,-213.51557418,0.00020474,2]
[366764579,1750439450287,-836.27303475,0.00020474,2]
[366764580,1750439450296,-424.85694595,0.00020474,2]
[366764581,1750439450306,-227.562,0.00020541,2]
[366764582,1750439450315,-460.0,0.00020659,2]
[366764583,1750439450325,-552.08,0.00020659,2]
[366764584,1750439450335,-629.37,0.00020659,2]
[366764585,1750439450343,-610.13,0.00020659,2]
[366764586,1750439450353,-589.37,0.0002066,2]
[366764587,1750439450363,-460.0,0.0002066,2]
[366764588,1750439450376,-460.0,0.0002066,2]
[366764589,1750439450385,-460.0,0.0002066,2]
[366764590,1750439450395,-460.0,0.0002066,2]
[366764591,1750439450405,-795.64,0.0002066,2]
[366764592,1750439450415,-460.0,0.0002066,2]
[366764593,1750439450424,-460.0,0.0002066,2]
[366764594,1750439450434,-460.0,0.0002066,2]
[366764595,1750439450443,-460.0,0.0002066,2]
[366764596,1750439450453,-460.0,0.0002066,2]
[366764597,1750439450463,-460.0,0.00020661,2]
[366764598,1750439450472,-460.0,0.00020661,2]
[366764599,1750439450482,-885.58,0.00020661,2]
[366764600,1750439450491,-460.0,0.00020661,2]
[366764601,1750439450500,-4163.12,0.00020894,10]
[366764602,1750439450510,-846.08887863,0.00020904,10]
[366764603,1750439450697,-5994.9,0.00020904,10]
[366764604,1750439450708,-4995.75,0.00020904,10]
[366764605,1750439450718,-213.51557418,0.00020914,10]
[366764606,1750439450728,-523.92420239,0.00020914,10]
[366764607,1750439450738,-12546.90244252,0.00020914,10]
[366764608,1750439450748,-460.0,0.00020933,2]
[366764609,1750439450757,-552.08,0.00020933,2]
[366764610,1750439450767,-629.37,0.00020933,2]
[366764611,1750439450777,-610.13,0.00020933,2]
[366764612,1750439450786,-589.37,0.00020934,2]
[366764613,1750439450795,-460.0,0.00020934,2]
[366764614,1750439450805,-460.0,0.00020934,2]
[366764615,1750439450814,-460.0,0.00020934,2]
[366764616,1750439450823,-460.0,0.00020934,2]
[366764617,1750439450833,-795.64,0.00020934,2]
[366764618,1750439450842,-460.0,0.00020934,2]
[366764619,1750439450851,-160.0,0.00020934,2]
[366764620,1750439450861,-460.0,0.00020934,2]
[366764621,1750439450870,-460.0,0.00020934,2]
[366764622,1750439450880,-460.0,0.00020934,2]
[366764623,1750439450890,-460.0,0.00020934,2]
[366764624,1750439450900,-460.0,0.00020935,2]
[366764625,1750439450909,-460.0,0.00020935,2]
[366764626,1750439450919,-885.58,0.00020935,2]
[366764627,1750439450928,-460.0,0.00020935,2]
[366764628,1750439450938,-420.0,0.00021019,2]
[366764629,1750439450948,-207.4,0.0002111,2]
[366764630,1750439450958,-356.39788949,0.00021119,2]
[366764631,1750439450967,-460.0,0.00021207,2]
[366764632,1750439450977,-552.08,0.00021207,2]
[366764633,1750439450987,-629.37,0.00021207,2]
[366764634,1750439450996,-610.13,0.00021207,2]
[366764635,1750439451006,-589.37,0.00021208,2]
[366764636,1750439451016,-460.0,0.00021208,2]
[366764637,1750439451026,-460.0,0.00021208,2]
[366764638,1750439451035,-460.0,0.00021208,2]
[366764639,1750439451045,-460.0,0.00021208,2]
[366764640,1750439451055,-795.64,0.00021208,2]
[366764641,1750439451065,-191.00086178,0.00021208,2]
[366764642,1750439451075,-460.0,0.00021208,2]
[366764643,1750439451085,-460.0,0.00021208,2]
[366764644,1750439451094,-460.0,0.00021208,2]
[366764645,1750439451104,-460.0,0.00021208,2]
[366764646,1750439451113,-460.0,0.00021209,2]
[366764647,1750439451122,-460.0,0.00021209,2]
[366764648,1750439451132,-885.58,0.00021209,2]
[366764649,1750439451141,-460.0,0.00021209,2]
[366764650,1750439451151,-420.0,0.00021311,2]
[366764651,1750439451162,-274.0,0.00021347,2]
[366764652,1750439451173,-1680.0,0.00021414,2]
[366764653,1750439451185,-460.0,0.00021481,2]
[366764654,1750439451198,-552.08,0.00021481,2]
[366764655,1750439451211,-629.37,0.00021481,2]
[366764656,1750439451221,-610.13,0.00021481,2]
[366764657,1750439451231,-589.37,0.00021482,2]
[366764658,1750439451241,-555.28185725,0.00021482,2]
[366764659,1750439451251,-460.0,0.00021482,2]
[366764660,1750439451260,-460.0,0.00021482,2]
[366764661,1750439451270,-460.0,0.00021482,2]
[366764662,1750439451279,-795.64,0.00021482,2]
[366764663,1750439451289,-460.0,0.00021482,2]
[366764664,1750439451298,-533.76157571,0.00021482,2]
[366764665,1750439451308,-460.0,0.00021482,2]
[366764666,1750439451319,-460.0,0.00021482,2]
[366764667,1750439451332,-460.0,0.00021483,2]
[366764668,1750439451341,-460.0,0.00021483,2]
[366764669,1750439451354,-360.23559967,0.00021483,2]
[366764670,1750439491295,200.0,0.00023758,120]
[366764671,1750439498903,-156.4667223,0.00019108,2]
[366764673,1750439537393,1000.0,0.000246,120]
[366764674,1750439568324,1000.0,0.00019,2]
[366764675,1750439610818,200.0,0.00024325,120]
[366764676,1750439758761,-150.0,0.00019108,2]
[366764677,1750439758786,-30.821,0.00019178,2]
[366764680,1750439917946,637.2,0.00024658,120]
[366764683,1750440027900,4000.0,0.00019102,2]
[366764684,1750440030920,200.0,0.00023953,120]
[366764685,1750440035223,24900.0,0.00018959,2]
[366764686,1750440090785,200.0,0.00024396,120]
[366764690,1750440330825,200.0,0.00024331,120]
[366764693,1750440377569,365.845885,0.00013699,2]
[366764694,1750440390759,200.0,0.00024414,120]
[366764695,1750440401842,150.0,0.000189,2]
[366764696,1750440449539,2000.0,0.00019058,120]
[366764697,1750440474528,711.83200019,0.000246,120]
[366764703,1750440505534,188.0,0.0002,120]
[366764704,1750440510875,200.0,0.00024232,120]
[366764705,1750440519876,1223.50163695,0.0002,120]
[366764706,1750440522550,386.42568305,0.00024108,120]
[366764707,1750440523862,1795.66437587,0.00024,120]
[366764708,1750440528371,391.30255353,0.00024,120]
[366764709,1750440528694,970.449757,0.00018,120]
[366764710,1750440529390,218.4058888,0.0001536,120]
[366764711,1750440530707,1010.82351597,0.0002,120]
[366764712,1750440532272,501.06886268,0.0002465,120]
[366764713,1750440532347,237.68845222,0.00024,120]
[366764714,1750440543616,-156.224033,0.00019178,2]
[366764715,1750440543641,-79.031936,0.00019178,2]
[366764717,1750440571324,200.0,0.00023999,120]
[366764780,1750440632619,-176.8265481,0.00019178,2]
[366764783,1750440632629,-200.0,0.000195,2]
[366764785,1750440632638,-359.67629134,0.00019517,2]
[366764786,1750440632648,-300.0,0.00019563,2]
[366764788,1750440632658,-489.0698376,0.00019564,2]
[366764790,1750440632667,-17.32732296,0.00019835,2]
[366764792,1750440632678,-482.67267704,0.00019835,2]
[366764794,1750440632688,-455.3197603,0.00019835,2]
[366764796,1750440632697,-175.0,0.00019835,2]
[366764798,1750440632707,-300.0,0.00019835,2]
[366764800,1750440632721,-300.0,0.00019835,2]
[366764802,1750440632731,-1200.0,0.00019835,2]
[366764804,1750440632740,-467.69280529,0.00019835,2]
[366764806,1750440632749,-17538.70859463,0.00019836,2]
[366764808,1750440632761,-460.0,0.00019836,2]
[366764810,1750440632770,-460.0,0.00019836,2]
[366764812,1750440632780,-460.0,0.00019836,2]
[366764814,1750440632792,-460.0,0.00019837,2]
[366764815,1750440632801,-460.0,0.00019837,2]
[366764816,1750440632811,-5000.0,0.00020068,2]
[366764817,1750440632820,-460.0,0.0002011,2]
[366764818,1750440632831,-460.0,0.0002011,2]
[366764819,1750440632841,-460.0,0.0002011,2]
[366764820,1750440632851,-460.0,0.0002011,2]
[366764821,1750440632862,-460.0,0.0002011,2]
[366764822,1750440632872,-460.0,0.0002011,2]
[366764824,1750440632882,-530.43,0.0002011,2]
[366764825,1750440632892,-460.0,0.0002011,2]
[366764827,1750440632903,-460.0,0.0002011,2]
[366764829,1750440632913,-460.0,0.0002011,2]
[366764831,1750440632923,-460.0,0.0002011,2]
[366764833,1750440632933,-460.0,0.0002011,2]
[366764835,1750440632942,-460.0,0.0002011,2]
[366764837,1750440632952,-460.0,0.0002011,2]
[366764839,1750440632962,-460.0,0.0002011,2]
[366764840,1750440632974,-365.845885,0.00020187,2]
[366764842,1750440632984,-463.54,0.00020382,2]
[366764843,1750440632994,-460.0,0.00020382,2]
[366764845,1750440633003,-460.0,0.00020382,2]
[366764847,1750440633013,-460.0,0.00020382,2]
[366764849,1750440633023,-460.0,0.00020382,2]
[366764850,1750440633034,-460.0,0.00020382,2]
[366764851,1750440633044,-460.0,0.00020382,2]
[366764852,1750440633055,-460.0,0.00020382,2]
[366764853,1750440633065,-460.0,0.00020382,2]
[366764854,1750440633075,-460.0,0.00020382,2]
[366764856,1750440633085,-460.0,0.00020383,2]
[366764858,1750440633095,-460.0,0.00020383,2]
[366764860,1750440633104,-612.28,0.00020383,2]
[366764861,1750440633115,-460.0,0.00020383,2]
[366764863,1750440633125,-460.0,0.00020383,2]
[366764865,1750440633135,-460.0,0.00020383,2]
[366764867,1750440633145,-460.0,0.00020384,2]
[366764869,1750440633155,-460.0,0.00020384,2]
[366764871,1750440633166,-530.43,0.00020384,2]
[366764873,1750440633177,-460.0,0.00020384,2]
[366764875,1750440633188,-460.0,0.00020384,2]
[366764877,1750440633198,-460.0,0.00020384,2]
[366764879,1750440633209,-460.0,0.00020384,2]
[366764881,1750440633224,-460.0,0.00020384,2]
[366764883,1750440633235,-460.0,0.00020384,2]
[366764885,1750440633246,-460.0,0.00020384,2]
[366764887,1750440633257,-1658.08027816,0.00020474,2]
[366764890,1750440633270,-552.99488317,0.00020474,2]
[366764896,1750440633332,-571.5,0.00019836,2]
[366764898,1750440633343,-10335.82728119,0.00020474,2]
[366764900,1750440633353,-160.0,0.00020474,2]
[366764902,1750440633364,-213.51557418,0.00020474,2]
[366764904,1750440633374,-160.0,0.00020474,2]
[366764906,1750440633385,-836.27303475,0.00020474,2]
[366764908,1750440633396,-424.85694595,0.00020474,2]
[366764910,1750440633406,-230.06456406,0.00020474,2]
[366764912,1750440633417,-523.92420239,0.00020474,2]
[366764914,1750440633427,-219.411,0.00020538,2]
[366764916,1750440633438,-365.5483814,0.00020552,2]
[366764918,1750440633448,-463.54,0.00020656,2]
[366764920,1750440633458,-460.0,0.00020656,2]
[366764922,1750440633471,-460.0,0.00020656,2]
[366764924,1750440633481,-460.0,0.00020656,2]
[366764925,1750440633490,-460.0,0.00020656,2]
[366764927,1750440633501,-500.0,0.00020656,2]
[366764929,1750440633511,-500.0,0.00020656,2]
[366764931,1750440633521,-500.0,0.00020656,2]
[366764933,1750440633531,-500.0,0.00020656,2]
[366764935,1750440633540,-230.27440911,0.00020656,2]
[366764937,1750440633551,-500.0,0.00020656,2]
[366764939,1750440633560,-500.0,0.00020656,2]
[366764941,1750440633571,-500.0,0.00020656,2]
[366764942,1750440633580,-500.0,0.00020656,2]
[366764943,1750440633590,-500.0,0.00020656,2]
[366764944,1750440633600,-500.0,0.00020656,2]
[366764945,1750440633610,-500.0,0.00020656,2]
[366764946,1750440633620,-500.0,0.00020656,2]
[366764947,1750440633630,-500.0,0.00020656,2]
[366764949,1750440633640,-500.0,0.00020656,2]
[366764951,1750440633650,-500.0,0.00020656,2]
[366764952,1750440633659,-500.0,0.00020656,2]
[366764954,1750440633670,-500.0,0.00020656,2]
[366764956,1750440633680,-500.0,0.00020656,2]
[366764958,1750440633690,-460.0,0.00020657,2]
[366764960,1750440633700,-612.28,0.00020657,2]
[366764962,1750440633711,-460.0,0.00020657,2]
[366764964,1750440633726,-290.40527206,0.00020657,2]
[366765207,1750440639409,-460.0,0.00019835,2]
[366765209,1750440639419,-460.0,0.00019836,2]
[366765211,1750440639429,-460.0,0.00020109,2]
[366765213,1750440639443,-20.0,0.0002011,2]
[366765410,1750440640731,-551.5,0.0002011,2]
[366765413,1750440640742,-460.0,0.0002011,2]
[366765418,1750440640752,-139.08254958,0.00020383,2]
[366765421,1750440640766,-320.91745042,0.00020383,2]
[366765424,1750440640777,-571.5,0.00020384,2]
[366765427,1750440640787,-460.0,0.00020384,2]
[366765430,1750440640798,-500.0,0.00020656,2]
[366765433,1750440640808,-500.0,0.00020656,2]
[366765436,1750440640818,-55.58254958,0.00020656,2]
[366765439,1750440640830,-324.79764064,0.00020656,2]
[366765442,1750440640840,-169.59472794,0.00020657,2]
[366765446,1750440640850,-248.37,0.00020657,2]
[366765449,1750440640860,-460.0,0.00020657,2]
[366765452,1750440640870,-530.43,0.00020658,2]
[366765455,1750440640883,-326.29622694,0.00020658,2]
[366765460,1750440640896,-133.70377306,0.00020658,2]
[366765463,1750440640907,-460.0,0.00020658,2]
[366765466,1750440640916,-460.0,0.00020658,2]
[366765469,1750440640926,-460.0,0.00020658,2]
[366765472,1750440640936,-460.0,0.00020658,2]
[366765494,1750440641088,-460.0,0.00020658,2]
[366765496,1750440641100,-571.5,0.00020658,2]
[366765498,1750440641110,-460.0,0.00020658,2]
[366765500,1750440641121,-75.788563,0.00020787,2]
[366765503,1750440641134,-236.41598819,0.00020787,2]
[366765505,1750440641145,-64.08858497,0.0002093,2]
[366765507,1750440641157,-257.775,0.0002093,2]
[366765948,1750440645653,-460.0,0.00019836,2]
[366765950,1750440645663,-460.0,0.0002011,2]
[366765952,1750440645673,-460.0,0.00020384,2]
[366765954,1750440645683,-460.0,0.00020658,2]
[366765956,1750440645693,-460.0,0.0002093,2]
[366765957,1750440645704,-460.0,0.0002093,2]
[366765959,1750440645715,-460.0,0.0002093,2]
[366765961,1750440645729,-460.0,0.00020931,2]
[366765964,1750440645740,-612.28,0.00020931,2]
[366765966,1750440645750,-460.0,0.00020931,2]
[366765968,1750440645760,-460.0,0.00020931,2]
[366765969,1750440645770,-530.43,0.00020932,2]
[366765971,1750440645780,-460.0,0.00020932,2]
[366765974,1750440645790,-460.0,0.00020932,2]
[366765976,1750440645803,-444.10723401,0.00020932,2]
[366765978,1750440645816,-15.89276599,0.00020932,2]
[366765980,1750440645825,-460.0,0.00020932,2]
[366765982,1750440645835,-460.0,0.00020932,2]
[366765984,1750440645845,-460.0,0.00020932,2]
[366765986,1750440645855,-571.5,0.00020932,2]
[366765988,1750440645865,-460.0,0.00020932,2]
[366765990,1750440645875,-151.93307033,0.00020932,2]
[366766008,1750440646003,-308.06692967,0.00020932,2]
[366766011,1750440646013,-915.60908035,0.0002094,10]
[366766020,1750440646177,-1679.66091965,0.0002094,10]
[366766021,1750440646187,-500.0,0.0002095,2]
[366766022,1750440646197,-207.4,0.0002111,2]
[366766023,1750440646207,-233.0,0.00021113,2]
[366766024,1750440646217,-233.0,0.00021151,2]
[366766025,1750440646241,-1182.24498192,0.000212,4]
[366766027,1750440646252,-1182.24498179,0.000212,4]
[366766029,1750440646262,-460.0,0.00021204,2]
[366766031,1750440646273,-460.0,0.00021204,2]
[366766033,1750440646283,-460.0,0.00021204,2]
[366766035,1750440646294,-508.58895449,0.00021205,2]
[366766037,1750440646305,-612.28,0.00021205,2]
[366766039,1750440646315,-460.0,0.00021205,2]
[366766041,1750440646326,-483.56,0.00021205,2]
[366766043,1750440646336,-530.43,0.00021206,2]
[366766045,1750440646346,-460.0,0.00021206,2]
[366766047,1750440646357,-460.0,0.00021206,2]
[366766049,1750440646367,-460.0,0.00021206,2]
[366766051,1750440646378,-87.73328716,0.00021206,2]
[366766054,1750440646391,-372.26671284,0.00021206,2]
[366766056,1750440646402,-460.0,0.00021206,2]
[366766058,1750440646412,-460.0,0.00021206,2]
[366766060,1750440646422,-519.49976309,0.00021206,2]
[366766063,1750440646441,-52.00023691,0.00021206,2]
[366766065,1750440646451,-460.0,0.00021206,2]
[366766067,1750440646461,-460.0,0.00021206,2]
[366766069,1750440646472,-1182.24498179,0.00021245,4]
[366766071,1750440646483,-420.0,0.00021311,2]
[366766073,1750440646493,-233.0,0.00021366,2]
[366766075,1750440646503,-154.66272975,0.00021381,2]
[366766077,1750440646513,-233.0,0.00021395,2]
[366766079,1750440646524,-1182.24498179,0.00021417,5]
[366766081,1750440646534,-460.0,0.00021478,2]
[366766083,1750440646544,-289.53698354,0.00021478,2]
[366766085,1750440646554,-460.0,0.00021478,2]
[366766087,1750440646564,-500.0,0.00021479,7]
[366766089,1750440646574,-612.28,0.00021479,2]
[366766091,1750440646584,-460.0,0.00021479,2]
[366766093,1750440646594,-233.0,0.00021479,2]
[366766095,1750440646604,-530.43,0.0002148,2]
[366766097,1750440646615,-460.0,0.0002148,2]
[366766099,1750440646625,-460.0,0.0002148,2]
[366766102,1750440646636,-460.0,0.0002148,2]
[366766104,1750440646646,-460.0,0.0002148,2]
[366766108,1750440646659,-460.0,0.0002148,2]
[366766110,1750440646669,-460.0,0.0002148,2]
[366766113,1750440646679,-571.5,0.0002148,2]
[366766116,1750440646689,-460.0,0.0002148,2]
[366766119,1750440646699,-460.0,0.0002148,2]
[366766121,1750440646709,-1000.0,0.00021498,2]
[366766123,1750440646721,-233.0,0.00021532,2]
[366766125,1750440646733,-274.0,0.00021542,2]
[366766127,1750440646743,-233.0,0.00021585,2]
[366766129,1750440646753,-1182.24498179,0.0002159,5]
[366766131,1750440646764,-420.0,0.00021602,2]
[366766133,1750440646773,-420.0,0.00021602,2]
[366766135,1750440646784,-274.0,0.00021672,2]
[366766137,1750440646794,-1680.0,0.00021706,2]
[366766139,1750440646804,-233.0,0.00021738,2]
[366766141,1750440646813,-233.0,0.00021743,2]
[366766143,1750440646823,-552.7012519,0.00021752,2]
[366766145,1750440646832,-460.0,0.00021752,2]
[366766147,1750440646842,-612.28,0.00021753,2]
[366766150,1750440646856,-460.0,0.00021753,2]
[366766152,1750440646866,-530.43,0.00021754,2]
[366766154,1750440646877,-460.0,0.00021754,2]
[366766156,1750440646888,-460.0,0.00021754,2]
[366766158,1750440646897,-460.0,0.00021754,2]
[366766160,1750440646908,-460.0,0.00021754,2]
[366766162,1750440646918,-460.0,0.00021754,2]
[366766164,1750440646928,-460.0,0.00021754,2]
[366766166,1750440646939,-571.5,0.00021754,2]
[366766169,1750440646949,-460.0,0.00021754,2]
[366766171,1750440646959,-460.0,0.00021754,2]
[366766173,1750440646969,-75.42255207,0.00021762,5]
[366766176,1750440647008,-1106.82242972,0.00021762,5]
[366766178,1750440647019,-274.0,0.00021797,2]
[366766180,1750440647029,-274.0,0.00021814,2]
[366766182,1750440647039,-463.0,0.00021839,2]
[366766184,1750440647050,-274.0,0.00021899,2]
[366766186,1750440647060,-616.77,0.000219,2]
[366766188,1750440647070,-156.8421927,0.00021901,2]
[366766190,1750440647080,-158.9615139,0.00021901,2]
[366766192,1750440647090,-177.1110308,0.00021901,2]
[366766194,1750440647099,-574.1078115,0.00021901,2]
[366766196,1750440647109,-159.0517633,0.00021922,2]
[366766198,1750440647119,-153.0,0.00021922,2]
[366766200,1750440647129,-354.3008366,0.00021922,2]
[366766202,1750440647138,-1147.5742536,0.00021922,2]
[366766204,1750440647148,-306.0,0.00021922,2]
[366766207,1750440647158,-159.0517633,0.00021922,2]
[366766209,1750440647169,-573.8932911,0.00021922,2]
[366766211,1750440647181,-352.102819,0.00021922,2]
[366766213,1750440647194,-159.0517633,0.00021922,2]
[366766215,1750440647206,-354.146424,0.00021922,2]
[366766217,1750440647223,-1147.9989108,0.00021922,2]
[366766219,1750440647238,-159.0517633,0.00021922,2]
[366766221,1750440647249,-158.9211974,0.00021922,2]
[366766223,1750440647259,-576.62039709,0.00021934,6]
[366773525,1750440751884,200.0,0.00023754,120]
[366773529,1750440774354,-165.666,0.00019178,2]
[366773538,1750441152463,24900.0,0.00018944,2]
[366773540,1750441259935,-168.0654835,0.00019103,2]
[366773542,1750441287820,-259.68609354,0.00019103,2]
[366773543,1750441321599,-204.42582081,0.00019103,2]
[366773544,1750441324123,-215.37604799,0.00019103,2]
[366773547,1750441366272,340.062139,0.00013699,2]
[366773548,1750441366822,-285.2,0.00019103,2]
[366773549,1750441384545,-168.76597768,0.00019103,2]
[366773550,1750441481636,-168.0,0.00019103,2]
[366773551,1750441501786,-212.95019361,0.00019103,2]
[366773552,1750441505912,-269.0902228,0.00019103,2]
[366773553,1750441527501,658.39825335,0.00019102,2]
[366773554,1750441529536,-154.0,0.00019103,2]
[366773555,1750441553546,175.604454,0.00018922,2]
[366773556,1750441604576,187.961866,0.00019078,2]
[366773557,1750441606663,150.0,0.000189,2]
[366773569,1750441636910,-298.32901646,0.00019103,2]
[366773575,1750441685933,-190.84605584,0.00019103,2]
[366773576,1750441696977,656.4337278,0.00018764,120]
[366773577,1750441723795,-182.4150196,0.00019103,2]
[366773578,1750441741944,-257.93901646,0.00019103,2]
[366773579,1750441757987,-202.69938057,0.00019103,2]
[366773580,1750441772379,-165.1568582,0.00019103,2]
[366773581,1750441780424,-1145.6,0.00019103,2]
[366773582,1750441781199,-7.93028724,0.00019103,2]
[366773583,1750441781222,-21.379033,0.00019178,2]
[366773584,1750441781244,-147.22614704,0.00019241,2]
[366773585,1750441784940,-51.60110598,0.00019241,2]
[366773586,1750441784965,-114.23600228,0.00019517,2]
[366773625,1750441832656,-132.12376505,0.00019517,2]
[366773627,1750441832667,-300.0,0.00019832,2]
[366773630,1750441832676,-105.67439676,0.00019832,2]
[366773632,1750441832688,-194.32560324,0.00019832,2]
[366773633,1750441832698,-300.0,0.00019832,2]
[366773635,1750441832708,-1200.0,0.00019832,2]
[366773637,1750441832721,-398.50383144,0.00019832,2]
[366773640,1750441832731,-445.23708259,0.00019832,2]
[366773643,1750441832741,-313.19630834,0.00019832,2]
[366773646,1750441832751,-460.0,0.00019832,2]
[366773649,1750441832761,-435.07914815,0.00019832,2]
[366773652,1750441832771,-13719.13301811,0.00019833,2]
[366773656,1750441832788,-13208.59616403,0.00019833,2]
[366773659,1750441832797,-300.0,0.00019833,2]
[366773662,1750441832807,-460.0,0.00019833,2]
[366773665,1750441832817,-460.0,0.00019833,2]
[366773668,1750441832827,-460.0,0.00019833,2]
[366773670,1750441832837,-688.09,0.00019833,2]
[366773672,1750441832847,-460.0,0.00019833,2]
[366773675,1750441832856,-500.0,0.00019833,2]
[366773677,1750441832866,-287.34577963,0.00019833,2]
[366773680,1750441832875,-500.0,0.00019833,2]
[366773682,1750441832885,-587.22045567,0.00019833,2]
[366773685,1750441832894,-500.0,0.00019833,2]
[366773687,1750441832904,-210.08787268,0.00019833,2]
[366773689,1750441832913,-500.0,0.00019833,2]
[366773691,1750441832923,-500.0,0.00019833,2]
[366773692,1750441832932,-500.0,0.00019833,2]
[366773693,1750441832942,-371.67950806,0.00019833,2]
[366773694,1750441832951,-500.0,0.00019833,2]
[366773695,1750441832965,-500.0,0.00019833,2]
[366773696,1750441832974,-500.0,0.00019833,2]
[366773697,1750441832983,-300.0,0.00019833,2]
[366773698,1750441832993,-500.0,0.00019833,2]
[366773699,1750441833003,-500.0,0.00019833,2]
[366773700,1750441833013,-500.0,0.00019833,2]
[366773701,1750441833023,-500.0,0.00019833,2]
[366773702,1750441833034,-460.0,0.00019834,2]
[366773703,1750441833044,-460.0,0.00019834,2]
[366773704,1750441833055,-460.0,0.00019834,2]
[366773705,1750441833065,-156.64750844,0.00019834,2]
[366773706,1750441833074,-462.16394054,0.00019834,2]
[366773707,1750441833084,-460.0,0.00019834,2]
[366773708,1750441833094,-460.0,0.00019834,2]
[366773709,1750441833105,-460.0,0.00019834,2]
[366773710,1750441833115,-482.02697208,0.00019834,2]
[366773711,1750441833128,-460.0,0.00019834,2]
[366773712,1750441833138,-460.0,0.00019834,2]
[366773713,1750441833149,-460.0,0.00019834,2]
[366773714,1750441833159,-7525.65,0.00019834,2]
[366773715,1750441833170,-460.0,0.00019834,2]
[366773716,1750441833180,-460.0,0.00019834,2]
[366773717,1750441833190,-460.0,0.00019834,2]
[366773719,1750441833201,-460.0,0.00019834,2]
[366773720,1750441833211,-460.0,0.00019834,2]
[366773721,1750441833223,-460.0,0.00019834,2]
[366773722,1750441833232,-460.0,0.00019834,2]
[366773723,1750441833244,-212.6747188,0.00019834,2]
[366773725,1750441833254,-460.0,0.00019835,2]
[366773727,1750441833263,-1000.0,0.00019835,2]
[366773729,1750441833273,-460.0,0.00019835,2]
[366773731,1750441833283,-460.0,0.00019835,2]
[366773733,1750441833293,-460.0,0.00019835,2]
[366773734,1750441833303,-460.0,0.00019835,2]
[366773736,1750441833313,-460.0,0.00019835,2]
[366773738,1750441833323,-302.76946081,0.00019835,2]
[366773739,1750441833332,-460.0,0.00019835,2]
[366773741,1750441833342,-460.0,0.00019835,2]